[Event "Late-Titled-Tuesday-Blitz-August-29-2023"]
[Site "Chess.com"]
[Date "2023.08.29"]
[Round "1"]
[White "CrushingKings"]
[Black "KejJaj"]
[Result "1-0"]
[WhiteElo "2557"]
[BlackElo "2205"]
[TimeControl "180+1"]
[EndTime "14:07:50 PDT"]
[Termination "CrushingKings won by resignation"]

1. d4 {[%clk 0:02:47.4]} 1... f5 {[%clk 0:02:59.4]} 2. c4 {[%clk 0:02:46.6]}
2... Nf6 {[%clk 0:02:59.7]} 3. Nf3 {[%clk 0:02:47]} 3... e6 {[%clk 0:03:00.2]}
4. g3 {[%clk 0:02:47.1]} 4... d5 {[%clk 0:03:00.1]} 5. Bg2 {[%clk 0:02:47]} 5...
c6 {[%clk 0:03:00.8]} 6. O-O {[%clk 0:02:47]} 6... Bd6 {[%clk 0:03:01.3]} 7. Nc3
{[%clk 0:02:46.5]} 7... Qe7 {[%clk 0:02:53.3]} 8. b3 {[%clk 0:02:39.4]} 8... O-O
{[%clk 0:02:50.5]} 9. Bb2 {[%clk 0:02:36.8]} 9... Nbd7 {[%clk 0:02:50.1]} 10.
Ne1 {[%clk 0:02:36.4]} 10... Ne4 {[%clk 0:02:47]} 11. Nd3 {[%clk 0:02:34.2]}
11... b6 {[%clk 0:02:36.2]} 12. Qc1 {[%clk 0:02:22.7]} 12... Bb7 {[%clk
0:02:31.6]} 13. f3 {[%clk 0:02:09.7]} 13... Nxc3 {[%clk 0:02:30]} 14. Qxc3
{[%clk 0:02:10.3]} 14... Nf6 {[%clk 0:02:18.9]} 15. c5 {[%clk 0:02:03.5]} 15...
bxc5 {[%clk 0:02:10.1]} 16. Nxc5 {[%clk 0:01:34.8]} 16... Bxc5 {[%clk
0:02:09.9]} 17. Qxc5 {[%clk 0:01:26]} 17... Qxc5 {[%clk 0:02:09.3]} 18. dxc5
{[%clk 0:01:26.7]} 18... Ba6 {[%clk 0:02:07.4]} 19. Kf2 {[%clk 0:00:55]} 19...
Nd7 {[%clk 0:02:02.9]} 20. Rfd1 {[%clk 0:00:32.7]} 20... Rab8 {[%clk 0:01:50.7]}
21. Rac1 {[%clk 0:00:32.2]} 21... e5 {[%clk 0:01:40.5]} 22. f4 {[%clk
0:00:31.3]} 22... Rfe8 {[%clk 0:01:27]} 23. e3 {[%clk 0:00:25.8]} 23... Rb5
{[%clk 0:01:18.4]} 24. Bf1 {[%clk 0:00:14]} 24... Ra5 {[%clk 0:01:18.8]} 25.
Bxa6 {[%clk 0:00:11.7]} 25... Rxa2 {[%clk 0:01:13.6]} 26. Be2 {[%clk 0:00:03.9]}
26... Rxb2 {[%clk 0:01:12.9]} 27. Ra1 {[%clk 0:00:04.6]} 27... Ra8 {[%clk
0:01:02.1]} 28. Rdc1 {[%clk 0:00:03.3]} 28... d4 {[%clk 0:00:52.8]} 29. exd4
{[%clk 0:00:02.1]} 29... exd4 {[%clk 0:00:52.6]} 30. Kf3 {[%clk 0:00:02.9]}
30... Rxb3+ {[%clk 0:00:48.6]} 31. Kf2 {[%clk 0:00:03]} 31... a5 {[%clk
0:00:38.3]} 32. Bc4+ {[%clk 0:00:02.1]} 32... Kf8 {[%clk 0:00:36.2]} 33. Bxb3
{[%clk 0:00:03]} 33... Nf6 {[%clk 0:00:30.2]} 34. Ba4 {[%clk 0:00:03.9]} 34...
Ne4+ {[%clk 0:00:29.4]} 35. Ke2 {[%clk 0:00:04.6]} 35... Nc3+ {[%clk 0:00:29.1]}
36. Rxc3 {[%clk 0:00:04.7]} 36... dxc3 {[%clk 0:00:28.9]} 37. Kd3 {[%clk
0:00:05.3]} 37... Rc8 {[%clk 0:00:26.9]} 38. Kxc3 {[%clk 0:00:05.8]} 38... Ke7
{[%clk 0:00:27.4]} 39. Kc4 {[%clk 0:00:06.3]} 39... Kf6 {[%clk 0:00:26.9]} 40.
Rd1 {[%clk 0:00:06.5]} 40... Ke7 {[%clk 0:00:24.2]} 41. Rd6 {[%clk 0:00:05.7]}
41... Rb8 {[%clk 0:00:21.2]} 42. Bxc6 {[%clk 0:00:05.9]} 42... Rb4+ {[%clk
0:00:21]} 43. Kd5 {[%clk 0:00:06.4]} 43... a4 {[%clk 0:00:19.4]} 44. Rd7+ {[%clk
0:00:07]} 44... Kf6 {[%clk 0:00:18.2]} 45. Ra7 {[%clk 0:00:07.9]} 45... g5
{[%clk 0:00:17]} 46. fxg5+ {[%clk 0:00:07.1]} 46... Kxg5 {[%clk 0:00:17.1]} 47.
Bxa4 {[%clk 0:00:08]} 47... h5 {[%clk 0:00:15.8]} 48. c6 {[%clk 0:00:08.5]}
48... Rb2 {[%clk 0:00:13.7]} 49. c7 {[%clk 0:00:08.2]} 49... Rd2+ {[%clk
0:00:12]} 50. Kc5 {[%clk 0:00:06.2]} 50... Rd7 {[%clk 0:00:10.7]} 51. Bxd7
{[%clk 0:00:05.5]} 51... f4 {[%clk 0:00:09.4]} 52. gxf4+ {[%clk 0:00:06.4]}
52... Kxf4 {[%clk 0:00:09.6]} 53. c8=Q {[%clk 0:00:06.2]} 1-0

[Event "Late-Titled-Tuesday-Blitz-August-29-2023"]
[Site "Chess.com"]
[Date "2023.08.29"]
[Round "1"]
[White "XiaoKangZhong"]
[Black "Francisco_Ferrari"]
[Result "1-0"]
[WhiteElo "2550"]
[BlackElo "2165"]
[TimeControl "180+1"]
[EndTime "14:07:50 PDT"]
[Termination "XiaoKangZhong won by checkmate"]

1. e4 {[%clk 0:02:54.3]} 1... e6 {[%clk 0:02:59.4]} 2. d4 {[%clk 0:02:49.4]}
2... d6 {[%clk 0:02:59.6]} 3. Nc3 {[%clk 0:02:44.3]} 3... Nd7 {[%clk 0:02:59.9]}
4. g3 {[%clk 0:02:30.4]} 4... g6 {[%clk 0:02:59.6]} 5. Bg2 {[%clk 0:02:30.6]}
5... Bg7 {[%clk 0:03:00.1]} 6. Nge2 {[%clk 0:02:31]} 6... Ne7 {[%clk 0:03:00.7]}
7. O-O {[%clk 0:02:31.2]} 7... b6 {[%clk 0:03:01.2]} 8. a4 {[%clk 0:02:27.7]}
8... a6 {[%clk 0:02:59.2]} 9. Be3 {[%clk 0:02:23.1]} 9... Bb7 {[%clk 0:02:59]}
10. Qd2 {[%clk 0:02:22.9]} 10... h6 {[%clk 0:02:58.4]} 11. f4 {[%clk 0:01:53.2]}
11... f5 {[%clk 0:02:28.7]} 12. d5 {[%clk 0:01:47.9]} 12... exd5 {[%clk
0:02:05.6]} 13. exd5 {[%clk 0:01:45.1]} 13... Nf6 {[%clk 0:01:56]} 14. Nd4
{[%clk 0:01:29.2]} 14... O-O {[%clk 0:01:21.6]} 15. Ne6 {[%clk 0:01:25.9]} 15...
Qd7 {[%clk 0:01:22]} 16. Nxf8 {[%clk 0:01:24.7]} 16... Rxf8 {[%clk 0:01:19.9]}
17. Rad1 {[%clk 0:01:22]} 17... b5 {[%clk 0:01:13.4]} 18. axb5 {[%clk
0:01:21.3]} 18... axb5 {[%clk 0:01:14.3]} 19. b4 {[%clk 0:01:19.8]} 19... Re8
{[%clk 0:01:06.3]} 20. Bd4 {[%clk 0:01:16.6]} 20... c6 {[%clk 0:00:46.9]} 21.
dxc6 {[%clk 0:01:14.5]} 21... Bxc6 {[%clk 0:00:42.1]} 22. Bxc6 {[%clk
0:01:05.7]} 22... Nxc6 {[%clk 0:00:43]} 23. Bxf6 {[%clk 0:00:51.4]} 23... Bxf6
{[%clk 0:00:41]} 24. Qxd6 {[%clk 0:00:30.3]} 24... Qa7+ {[%clk 0:00:37.1]} 25.
Kh1 {[%clk 0:00:25.6]} 25... Bxc3 {[%clk 0:00:12.1]} 26. Qxc6 {[%clk 0:00:21.4]}
26... Qa8 {[%clk 0:00:08.6]} 27. Qxa8 {[%clk 0:00:19.8]} 27... Rxa8 {[%clk
0:00:09.5]} 28. Rd5 {[%clk 0:00:17]} 28... Bxb4 {[%clk 0:00:09.6]} 29. Rxb5
{[%clk 0:00:17.2]} 29... Bc3 {[%clk 0:00:10.3]} 30. Rb6 {[%clk 0:00:16.5]} 30...
Ra2 {[%clk 0:00:10.6]} 31. Rc6 {[%clk 0:00:09.1]} 31... Rxc2 {[%clk 0:00:09.6]}
32. Rf3 {[%clk 0:00:08.5]} 32... Rc1+ {[%clk 0:00:10.3]} 33. Kg2 {[%clk
0:00:09]} 33... Bd2 {[%clk 0:00:11]} 34. Rxc1 {[%clk 0:00:09]} 34... Bxc1 {[%clk
0:00:11.9]} 35. Rc3 {[%clk 0:00:08.4]} 35... Bb2 {[%clk 0:00:12.1]} 36. Rc6
{[%clk 0:00:08.4]} 36... Bg7 {[%clk 0:00:12.8]} 37. Rxg6 {[%clk 0:00:07.8]}
37... Kf7 {[%clk 0:00:13.7]} 38. Rc6 {[%clk 0:00:07.6]} 38... Bf6 {[%clk
0:00:13.9]} 39. Kf3 {[%clk 0:00:05.9]} 39... h5 {[%clk 0:00:14.8]} 40. Rc7+
{[%clk 0:00:05.6]} 40... Kg6 {[%clk 0:00:14.8]} 41. h3 {[%clk 0:00:05.9]} 41...
Bd8 {[%clk 0:00:15.5]} 42. Rc6+ {[%clk 0:00:06.2]} 42... Bf6 {[%clk 0:00:15.7]}
43. Rd6 {[%clk 0:00:06.3]} 43... Kf7 {[%clk 0:00:15.1]} 44. Rd5 {[%clk
0:00:06.9]} 44... Be7 {[%clk 0:00:16]} 45. Rb5 {[%clk 0:00:07.3]} 45... Kg6
{[%clk 0:00:16.9]} 46. Ra5 {[%clk 0:00:07.1]} 46... Bf6 {[%clk 0:00:17.8]} 47.
Ra6 {[%clk 0:00:07.8]} 47... h4 {[%clk 0:00:18.5]} 48. g4 {[%clk 0:00:08]} 48...
Kf7 {[%clk 0:00:19.4]} 49. gxf5 {[%clk 0:00:05.7]} 49... Be7 {[%clk 0:00:20.3]}
50. Kg4 {[%clk 0:00:05.9]} 50... Bf8 {[%clk 0:00:21.2]} 51. Rg6 {[%clk 0:00:06]}
51... Be7 {[%clk 0:00:21.5]} 52. Rh6 {[%clk 0:00:06.2]} 52... Bf6 {[%clk
0:00:22.1]} 53. Rxh4 {[%clk 0:00:04]} 53... Bxh4 {[%clk 0:00:21.7]} 54. Kxh4
{[%clk 0:00:04.7]} 54... Kf6 {[%clk 0:00:22.5]} 55. Kg4 {[%clk 0:00:05.4]} 55...
Kf7 {[%clk 0:00:23.4]} 56. Kg5 {[%clk 0:00:06]} 56... Kg7 {[%clk 0:00:23.8]} 57.
f6+ {[%clk 0:00:06.4]} 57... Kf7 {[%clk 0:00:24.7]} 58. Kf5 {[%clk 0:00:07]}
58... Ke8 {[%clk 0:00:25.3]} 59. Ke6 {[%clk 0:00:07.1]} 59... Kf8 {[%clk
0:00:26.2]} 60. f7 {[%clk 0:00:07.5]} 60... Kg7 {[%clk 0:00:26.4]} 61. Ke7
{[%clk 0:00:08.1]} 61... Kh6 {[%clk 0:00:27.3]} 62. f8=Q+ {[%clk 0:00:07.9]}
62... Kh5 {[%clk 0:00:28.2]} 63. Qh8+ {[%clk 0:00:07.9]} 63... Kg6 {[%clk
0:00:28.5]} 64. Qf6+ {[%clk 0:00:08.3]} 64... Kh5 {[%clk 0:00:28.8]} 65. Qg5#
{[%clk 0:00:08.4]} 1-0

[Event "Late-Titled-Tuesday-Blitz-August-29-2023"]
[Site "Chess.com"]
[Date "2023.08.29"]
[Round "1"]
[White "sergiochess83"]
[Black "jup1978"]
[Result "1-0"]
[WhiteElo "2954"]
[BlackElo "2499"]
[TimeControl "180+1"]
[EndTime "14:07:51 PDT"]
[Termination "sergiochess83 won by resignation"]

1. d4 {[%clk 0:03:00.9]} 1... d5 {[%clk 0:02:58.7]} 2. c4 {[%clk 0:02:57.8]}
2... c6 {[%clk 0:02:57.5]} 3. Nf3 {[%clk 0:02:56.9]} 3... Nf6 {[%clk 0:02:56.8]}
4. Nc3 {[%clk 0:02:57]} 4... a6 {[%clk 0:02:57]} 5. Ne5 {[%clk 0:02:55.7]} 5...
e6 {[%clk 0:02:53.5]} 6. Bf4 {[%clk 0:02:55.7]} 6... Nbd7 {[%clk 0:02:52.1]} 7.
e3 {[%clk 0:02:55.7]} 7... Nxe5 {[%clk 0:02:50.9]} 8. Bxe5 {[%clk 0:02:55.5]}
8... Bd6 {[%clk 0:02:50.3]} 9. Bxd6 {[%clk 0:02:00.7]} 9... Qxd6 {[%clk
0:02:49.7]} 10. c5 {[%clk 0:02:01.4]} 10... Qc7 {[%clk 0:02:47.1]} 11. f4 {[%clk
0:02:02]} 11... b6 {[%clk 0:02:44.8]} 12. Na4 {[%clk 0:01:53.6]} 12... Nd7
{[%clk 0:02:41.8]} 13. cxb6 {[%clk 0:01:20.3]} 13... Nxb6 {[%clk 0:02:42.7]} 14.
Rc1 {[%clk 0:01:20.3]} 14... O-O {[%clk 0:02:35]} 15. Bd3 {[%clk 0:01:19.7]}
15... Bd7 {[%clk 0:02:31.8]} 16. Nc5 {[%clk 0:01:18.9]} 16... a5 {[%clk
0:02:28.2]} 17. O-O {[%clk 0:01:17.8]} 17... Bc8 {[%clk 0:02:26.5]} 18. Qc2
{[%clk 0:01:13.1]} 18... g6 {[%clk 0:02:17.5]} 19. b3 {[%clk 0:01:12.1]} 19...
Nd7 {[%clk 0:02:06.2]} 20. Rf2 {[%clk 0:01:10.3]} 20... Nxc5 {[%clk 0:01:59.8]}
21. Qxc5 {[%clk 0:01:11.2]} 21... Bd7 {[%clk 0:02:00.2]} 22. Rfc2 {[%clk
0:01:06.8]} 22... Rfb8 {[%clk 0:01:59.3]} 23. Rc3 {[%clk 0:00:59.6]} 23... Qb6
{[%clk 0:01:58.5]} 24. Qxb6 {[%clk 0:00:34.2]} 24... Rxb6 {[%clk 0:01:59.4]} 25.
a3 {[%clk 0:00:33.2]} 25... Kf8 {[%clk 0:01:58.4]} 26. Kf2 {[%clk 0:00:32.9]}
26... Ke7 {[%clk 0:01:58.6]} 27. g4 {[%clk 0:00:33.3]} 27... Rab8 {[%clk
0:01:56.6]} 28. Bc2 {[%clk 0:00:33.5]} 28... Kd6 {[%clk 0:01:53.5]} 29. Bd1
{[%clk 0:00:33.6]} 29... Rc8 {[%clk 0:01:40.3]} 30. g5 {[%clk 0:00:32.7]} 30...
Rb5 {[%clk 0:01:31.5]} 31. Be2 {[%clk 0:00:31]} 31... Rb6 {[%clk 0:01:29.7]} 32.
h4 {[%clk 0:00:31.1]} 32... Rcb8 {[%clk 0:01:26.9]} 33. Bd1 {[%clk 0:00:30.4]}
33... h6 {[%clk 0:01:26.5]} 34. Kg3 {[%clk 0:00:27]} 34... hxg5 {[%clk
0:01:25.7]} 35. hxg5 {[%clk 0:00:26.9]} 35... Rh8 {[%clk 0:01:24.6]} 36. Kg2
{[%clk 0:00:22.7]} 36... Rhb8 {[%clk 0:01:20.4]} 37. Rc5 {[%clk 0:00:20.8]}
37... Rb5 {[%clk 0:01:18.8]} 38. Kf2 {[%clk 0:00:18.5]} 38... Rxc5 {[%clk
0:01:17.1]} 39. Rxc5 {[%clk 0:00:15.7]} 39... Rb5 {[%clk 0:01:17.4]} 40. Rc1
{[%clk 0:00:11.1]} 40... Rb8 {[%clk 0:01:14.3]} 41. Rc3 {[%clk 0:00:07.9]} 41...
Bc8 {[%clk 0:01:10.1]} 42. Be2 {[%clk 0:00:07.5]} 42... Rb6 {[%clk 0:01:07.9]}
43. Ke1 {[%clk 0:00:07.6]} 43... Ba6 {[%clk 0:01:06.7]} 44. Bxa6 {[%clk
0:00:05.5]} 44... Rxa6 {[%clk 0:01:07.6]} 45. Kd2 {[%clk 0:00:06.1]} 45... Rb6
{[%clk 0:01:06.3]} 46. Kc2 {[%clk 0:00:06.8]} 46... Rb5 {[%clk 0:01:06.1]} 47.
a4 {[%clk 0:00:06.1]} 47... Rb6 {[%clk 0:01:04.2]} 48. Rc5 {[%clk 0:00:06.7]}
48... Ra6 {[%clk 0:01:04.6]} 49. Kc3 {[%clk 0:00:07.1]} 49... Kc7 {[%clk
0:01:02.1]} 50. Kb2 {[%clk 0:00:03.9]} 50... Kb6 {[%clk 0:01:00.5]} 51. Rc1
{[%clk 0:00:03.4]} 51... Ra8 {[%clk 0:00:55.8]} 52. Rh1 {[%clk 0:00:03.4]} 52...
Rc8 {[%clk 0:00:55]} 53. Rh7 {[%clk 0:00:03]} 53... Rc7 {[%clk 0:00:55.4]} 54.
Rh8 {[%clk 0:00:01.6]} 54... c5 {[%clk 0:00:52.1]} 55. Rb8+ {[%clk 0:00:01.7]}
55... Ka6 {[%clk 0:00:48.5]} 56. Ra8+ {[%clk 0:00:01.8]} 56... Kb6 {[%clk
0:00:48.1]} 57. Rb8+ {[%clk 0:00:02.1]} 57... Ka7 {[%clk 0:00:46.5]} 58. Rb5
{[%clk 0:00:02]} 58... cxd4 {[%clk 0:00:45.7]} 59. Rxa5+ {[%clk 0:00:02.3]}
59... Kb6 {[%clk 0:00:43.2]} 60. Rb5+ {[%clk 0:00:03.2]} 60... Kc6 {[%clk
0:00:42.9]} 61. exd4 {[%clk 0:00:04.1]} 61... Rc8 {[%clk 0:00:43]} 62. Rc5+
{[%clk 0:00:04.1]} 62... Kb7 {[%clk 0:00:41.1]} 63. Rxc8 {[%clk 0:00:05]} 63...
Kxc8 {[%clk 0:00:42]} 64. b4 {[%clk 0:00:05.5]} 64... Kb7 {[%clk 0:00:42.9]} 65.
b5 {[%clk 0:00:06]} 65... Kb6 {[%clk 0:00:43.6]} 66. Ka3 {[%clk 0:00:06.4]}
66... Ka5 {[%clk 0:00:44.2]} 67. Kb3 {[%clk 0:00:07]} 67... Kb6 {[%clk
0:00:44.5]} 68. Kb4 {[%clk 0:00:07.6]} 68... Kb7 {[%clk 0:00:45.1]} 69. a5
{[%clk 0:00:08.2]} 69... Ka7 {[%clk 0:00:45.4]} 70. Kc5 {[%clk 0:00:08.8]} 70...
Kb7 {[%clk 0:00:45.4]} 71. Kd6 {[%clk 0:00:09.4]} 1-0

[Event "Late-Titled-Tuesday-Blitz-August-29-2023"]
[Site "Chess.com"]
[Date "2023.08.29"]
[Round "1"]
[White "stasOR4ik"]
[Black "Mikhail_Bryakin"]
[Result "0-1"]
[WhiteElo "2446"]
[BlackElo "2828"]
[TimeControl "180+1"]
[EndTime "14:07:52 PDT"]
[Termination "Mikhail_Bryakin won by checkmate"]

1. c4 {[%clk 0:03:00.3]} 1... Nf6 {[%clk 0:02:48.3]} 2. Nc3 {[%clk 0:03:00.2]}
2... g6 {[%clk 0:02:48.1]} 3. g3 {[%clk 0:03:00.7]} 3... Bg7 {[%clk 0:02:48.1]}
4. Bg2 {[%clk 0:03:01.4]} 4... O-O {[%clk 0:02:48.3]} 5. e4 {[%clk 0:03:02.1]}
5... e5 {[%clk 0:02:45.8]} 6. Nge2 {[%clk 0:03:02.3]} 6... c6 {[%clk 0:02:43.2]}
7. O-O {[%clk 0:03:01.6]} 7... Na6 {[%clk 0:02:38.8]} 8. f4 {[%clk 0:02:52.1]}
8... d6 {[%clk 0:02:37.8]} 9. d4 {[%clk 0:02:50.3]} 9... exd4 {[%clk 0:02:33.2]}
10. Nxd4 {[%clk 0:02:51.2]} 10... Re8 {[%clk 0:02:31.4]} 11. Kh1 {[%clk
0:02:34.9]} 11... Nc5 {[%clk 0:02:31.2]} 12. Re1 {[%clk 0:02:26.8]} 12... a5
{[%clk 0:02:30.9]} 13. Nb3 {[%clk 0:02:07.4]} 13... Ne6 {[%clk 0:02:26.3]} 14.
Be3 {[%clk 0:02:05.6]} 14... a4 {[%clk 0:02:24.9]} 15. Nd4 {[%clk 0:02:01.5]}
15... Nc5 {[%clk 0:02:25]} 16. Bg1 {[%clk 0:02:00.6]} 16... h5 {[%clk
0:02:22.6]} 17. e5 {[%clk 0:01:41.1]} 17... dxe5 {[%clk 0:02:20.9]} 18. fxe5
{[%clk 0:01:42]} 18... Ng4 {[%clk 0:02:21.3]} 19. Nxc6 {[%clk 0:01:31.1]} 19...
Qxd1 {[%clk 0:02:14.9]} 20. Raxd1 {[%clk 0:01:30.6]} 20... Nd7 {[%clk
0:02:14.3]} 21. e6 {[%clk 0:01:23.6]} 21... fxe6 {[%clk 0:02:10.5]} 22. Nd4
{[%clk 0:01:15.9]} 22... Nf8 {[%clk 0:02:02.6]} 23. Ndb5 {[%clk 0:01:09.3]}
23... Re7 {[%clk 0:01:56.3]} 24. h3 {[%clk 0:01:00.8]} 24... Nh6 {[%clk
0:01:52.6]} 25. Bc5 {[%clk 0:01:00.4]} 25... Rd7 {[%clk 0:01:52.3]} 26. Bxf8
{[%clk 0:00:52.6]} 26... Bxf8 {[%clk 0:01:49.6]} 27. Rxd7 {[%clk 0:00:49.1]}
27... Bxd7 {[%clk 0:01:50.5]} 28. Bxb7 {[%clk 0:00:49.3]} 28... Rb8 {[%clk
0:01:50.8]} 29. Be4 {[%clk 0:00:47.4]} 29... Nf5 {[%clk 0:01:50.8]} 30. Bxf5
{[%clk 0:00:47.7]} 30... gxf5 {[%clk 0:01:44.9]} 31. Nxa4 {[%clk 0:00:36.5]}
31... Bxb5 {[%clk 0:01:44.1]} 32. cxb5 {[%clk 0:00:36.3]} 32... Rxb5 {[%clk
0:01:45]} 33. Rxe6 {[%clk 0:00:35.1]} 33... Kf7 {[%clk 0:01:42.9]} 34. Re2
{[%clk 0:00:30.3]} 34... Bd6 {[%clk 0:01:42.3]} 35. Kg2 {[%clk 0:00:29.5]} 35...
h4 {[%clk 0:01:41.9]} 36. gxh4 {[%clk 0:00:26.5]} 36... Rd5 {[%clk 0:01:41.5]}
37. Nc3 {[%clk 0:00:24.1]} 37... Rd3 {[%clk 0:01:41.9]} 38. Rf2 {[%clk
0:00:20.6]} 38... Rg3+ {[%clk 0:01:40.5]} 39. Kf1 {[%clk 0:00:20.5]} 39... Ke6
{[%clk 0:01:38.2]} 40. Re2+ {[%clk 0:00:19.2]} 40... Kd7 {[%clk 0:01:38.2]} 41.
Rf2 {[%clk 0:00:15.7]} 41... Ke6 {[%clk 0:01:37]} 42. Nb5 {[%clk 0:00:15.9]}
42... Be5 {[%clk 0:01:36.8]} 43. Re2 {[%clk 0:00:14.4]} 43... Rxh3 {[%clk
0:01:34.8]} 44. a4 {[%clk 0:00:11.3]} 44... Rxh4 {[%clk 0:01:32.6]} 45. b3
{[%clk 0:00:10]} 45... Kd5 {[%clk 0:01:27.7]} 46. Rd2+ {[%clk 0:00:08.3]} 46...
Ke4 {[%clk 0:01:27.5]} 47. Re2+ {[%clk 0:00:05.1]} 47... Kf4 {[%clk 0:01:28]}
48. Rf2+ {[%clk 0:00:04.9]} 48... Kg5 {[%clk 0:01:27.5]} 49. Rg2+ {[%clk
0:00:05.3]} 49... Kf6 {[%clk 0:01:26.7]} 50. a5 {[%clk 0:00:03.9]} 50... Rb4
{[%clk 0:01:24.5]} 51. Na3 {[%clk 0:00:01.8]} 51... Rxb3 {[%clk 0:01:23.6]} 52.
Nc4 {[%clk 0:00:02.3]} 52... Bd4 {[%clk 0:01:23.7]} 53. Rd2 {[%clk 0:00:02.1]}
53... Bc5 {[%clk 0:01:16.4]} 54. Ke2 {[%clk 0:00:02.7]} 54... Ke6 {[%clk
0:01:15.4]} 55. Rc2 {[%clk 0:00:02.9]} 55... Rb4 {[%clk 0:01:08.8]} 56. Nd2
{[%clk 0:00:02.2]} 56... Kd5 {[%clk 0:01:05]} 57. Nf3 {[%clk 0:00:02.2]} 57...
Ra4 {[%clk 0:01:04.5]} 58. Ne1 {[%clk 0:00:01.7]} 58... Rxa5 {[%clk 0:01:03.2]}
59. Nd3 {[%clk 0:00:02.5]} 59... Bd4 {[%clk 0:01:03.9]} 60. Nf4+ {[%clk
0:00:02.7]} 60... Ke4 {[%clk 0:01:04]} 61. Nd3 {[%clk 0:00:03.4]} 61... Ra3
{[%clk 0:01:00.6]} 62. Nf2+ {[%clk 0:00:03.9]} 62... Kd5 {[%clk 0:01:01.3]} 63.
Rc8 {[%clk 0:00:04.2]} 63... Re3+ {[%clk 0:01:01.3]} 64. Kd2 {[%clk 0:00:04.6]}
64... Ra3 {[%clk 0:00:56.6]} 65. Rd8+ {[%clk 0:00:04.9]} 65... Kc4 {[%clk
0:00:56.2]} 66. Nd1 {[%clk 0:00:05.1]} 66... Ra2+ {[%clk 0:00:55.7]} 67. Ke1
{[%clk 0:00:05.4]} 67... Kd3 {[%clk 0:00:51.9]} 68. Re8 {[%clk 0:00:03.7]} 68...
Rg2 {[%clk 0:00:49.4]} 69. Re2 {[%clk 0:00:02.1]} 69... Rg1# {[%clk 0:00:49.1]}
0-1

[Event "Late-Titled-Tuesday-Blitz-August-29-2023"]
[Site "Chess.com"]
[Date "2023.08.29"]
[Round "1"]
[White "PepeCuenca"]
[Black "effefe"]
[Result "1-0"]
[WhiteElo "2732"]
[BlackElo "2421"]
[TimeControl "180+1"]
[EndTime "14:08:00 PDT"]
[Termination "PepeCuenca won by resignation"]

1. c4 {[%clk 0:02:56.2]} 1... Nf6 {[%clk 0:02:53.8]} 2. Nc3 {[%clk 0:02:56]}
2... g6 {[%clk 0:02:49.6]} 3. e4 {[%clk 0:02:56.1]} 3... d6 {[%clk 0:02:43.3]}
4. d4 {[%clk 0:02:56]} 4... Bg7 {[%clk 0:02:34.8]} 5. h3 {[%clk 0:02:56]} 5...
O-O {[%clk 0:02:35.2]} 6. Be3 {[%clk 0:02:56.3]} 6... e5 {[%clk 0:02:32.5]} 7.
d5 {[%clk 0:02:56]} 7... c6 {[%clk 0:02:31.7]} 8. Nf3 {[%clk 0:02:55.1]} 8...
cxd5 {[%clk 0:02:31.9]} 9. cxd5 {[%clk 0:02:54.7]} 9... Nbd7 {[%clk 0:02:32.3]}
10. Nd2 {[%clk 0:02:52.6]} 10... a5 {[%clk 0:02:29.8]} 11. a3 {[%clk 0:02:32.2]}
11... Nc5 {[%clk 0:02:25.4]} 12. Rb1 {[%clk 0:02:29.4]} 12... a4 {[%clk
0:02:20.9]} 13. Bxc5 {[%clk 0:02:21.9]} 13... dxc5 {[%clk 0:02:19.9]} 14. Nxa4
{[%clk 0:02:22.6]} 14... Qa5 {[%clk 0:02:05.3]} 15. Nc3 {[%clk 0:02:18.5]} 15...
Bd7 {[%clk 0:01:40.2]} 16. Nc4 {[%clk 0:02:11.6]} 16... Qa7 {[%clk 0:01:24.6]}
17. Be2 {[%clk 0:02:03.3]} 17... Rfe8 {[%clk 0:01:17]} 18. O-O {[%clk
0:01:45.2]} 18... Bf8 {[%clk 0:01:00.2]} 19. f4 {[%clk 0:01:24.2]} 19... b5
{[%clk 0:00:36.2]} 20. fxe5 {[%clk 0:01:05.5]} 20... bxc4 {[%clk 0:00:23.8]} 21.
exf6 {[%clk 0:01:04.4]} 21... Bh6 {[%clk 0:00:19.3]} 22. Bxc4 {[%clk 0:01:00.2]}
22... Be3+ {[%clk 0:00:19.6]} 23. Kh1 {[%clk 0:01:00.2]} 23... Qc7 {[%clk
0:00:18.5]} 24. Qf3 {[%clk 0:00:55.7]} 24... Bh6 {[%clk 0:00:12.5]} 25. Bb5
{[%clk 0:00:43.2]} 25... Bxb5 {[%clk 0:00:09.1]} 26. Nxb5 {[%clk 0:00:44.1]}
26... Qe5 {[%clk 0:00:09.5]} 27. Nc3 {[%clk 0:00:40.2]} 27... Rab8 {[%clk
0:00:03.4]} 28. Qf2 {[%clk 0:00:28.6]} 28... Rbc8 {[%clk 0:00:02.3]} 29. Rbd1
{[%clk 0:00:27.8]} 29... c4 {[%clk 0:00:02.8]} 30. d6 {[%clk 0:00:27]} 30...
Red8 {[%clk 0:00:02.7]} 31. Qd4 {[%clk 0:00:26]} 31... Qe6 {[%clk 0:00:03]} 32.
Qd5 {[%clk 0:00:23.3]} 32... Qd7 {[%clk 0:00:02.6]} 33. e5 {[%clk 0:00:21.9]}
33... Bf8 {[%clk 0:00:03.3]} 34. Ne4 {[%clk 0:00:21.2]} 34... Re8 {[%clk
0:00:03.4]} 35. Nc5 {[%clk 0:00:20.3]} 35... Rxc5 {[%clk 0:00:01.7]} 36. Qxc5
{[%clk 0:00:19.8]} 36... Qe6 {[%clk 0:00:02]} 37. Qd5 {[%clk 0:00:19.5]} 37...
Qd7 {[%clk 0:00:01.7]} 38. Rfe1 {[%clk 0:00:19.6]} 38... Rc8 {[%clk 0:00:01.3]}
39. e6 {[%clk 0:00:19.3]} 39... fxe6 {[%clk 0:00:01.9]} 40. Qxe6+ {[%clk
0:00:19.3]} 40... Qxe6 {[%clk 0:00:02.6]} 41. Rxe6 {[%clk 0:00:19.9]} 41... Rd8
{[%clk 0:00:01.8]} 42. d7 {[%clk 0:00:19.7]} 42... Kf7 {[%clk 0:00:02.6]} 43.
Re8 {[%clk 0:00:19]} 43... Rxe8 {[%clk 0:00:01.7]} 44. dxe8=Q+ {[%clk
0:00:19.9]} 44... Kxe8 {[%clk 0:00:02.6]} 45. Rc1 {[%clk 0:00:19.9]} 45... c3
{[%clk 0:00:01.9]} 46. Rxc3 {[%clk 0:00:20]} 46... Kf7 {[%clk 0:00:02.5]} 47.
Rf3 {[%clk 0:00:20.3]} 47... Bc5 {[%clk 0:00:02.3]} 48. b4 {[%clk 0:00:20.6]}
48... Bd4 {[%clk 0:00:02.7]} 49. b5 {[%clk 0:00:20.6]} 49... g5 {[%clk 0:00:03]}
50. a4 {[%clk 0:00:20.8]} 50... h5 {[%clk 0:00:03.6]} 51. a5 {[%clk 0:00:20.6]}
51... g4 {[%clk 0:00:04.2]} 52. hxg4 {[%clk 0:00:21.2]} 52... hxg4 {[%clk
0:00:05.1]} 53. Rf4 {[%clk 0:00:21.8]} 53... Be3 {[%clk 0:00:01.7]} 54. Rxg4
{[%clk 0:00:20.2]} 54... Kxf6 {[%clk 0:00:02.4]} 55. Re4 {[%clk 0:00:16.9]}
55... Bd2 {[%clk 0:00:02]} 56. a6 {[%clk 0:00:16.6]} 56... Ba5 {[%clk
0:00:01.6]} 57. a7 {[%clk 0:00:16.7]} 57... Bb6 {[%clk 0:00:02.1]} 58. a8=Q
{[%clk 0:00:16.9]} 58... Kf5 {[%clk 0:00:03]} 59. Qd5+ {[%clk 0:00:16.7]} 1-0